fUST/lending_fUST_20250320
["ID","MTS","AMOUNT","RATE_DAILY","PERIOD"]
[356401500,1742407832510,-500.0,0.00022761,2]
[356401502,1742407832519,-500.0,0.00022761,2]
[356401504,1742407832531,-649.04052815,0.00022761,2]
[356401507,1742407832541,-16553.5878663,0.00022762,2]
[356401510,1742407832550,-500.0,0.000228,2]
[356401513,1742407832561,-500.0,0.000228,2]
[356401517,1742407832570,-500.0,0.000228,2]
[356401520,1742407832581,-500.0,0.000228,2]
[356401522,1742407832591,-500.0,0.000228,2]
[356401523,1742407832601,-635.7641911,0.000228,2]
[356401524,1742407832610,-262.40878184,0.000228,2]
[356401525,1742407832620,-539.97705699,0.00022897,2]
[356401526,1742407832630,-4877.9222302,0.00022997,2]
[356401527,1742407832640,-325.38038181,0.00023434,2]
[356401528,1742407832650,-152.0,0.00023692,2]
[356401529,1742407832660,-3000.0,0.000237,2]
[356401530,1742407832670,-513.81120663,0.00023773,2]
[356401531,1742407832680,-258.64323255,0.00023773,2]
[356401532,1742407832690,-552.33168527,0.00023773,2]
[356401533,1742407832701,-163.22033268,0.00023773,2]
[356401534,1742407832712,-500.0,0.00023773,2]
[356401535,1742407832722,-500.0,0.00023773,2]
[356401536,1742407832732,-501.70936986,0.00023773,2]
[356401537,1742407832742,-500.0,0.00023773,2]
[356401538,1742407832752,-500.0,0.00023773,2]
[356401539,1742407832762,-209.58475179,0.00023773,2]
[356401540,1742407832771,-200.20744953,0.00023773,2]
[356401541,1742407832784,-500.0,0.00023773,2]
[356401542,1742407832794,-500.0,0.00023773,2]
[356401543,1742407832804,-1000.0,0.00023786,2]
[356401544,1742407832814,-500.0,0.00023799,2]
[356401546,1742407832825,-1727.71321664,0.00023799,2]
[356401547,1742407832834,-623.2755826,0.00023799,2]
[356401562,1742407832976,-176.87537992,0.00023799,2]
[356401564,1742407832986,-222000.0,0.000238,2]
[356401565,1742407832995,-500.0,0.00023873,2]
[356401568,1742407833006,-571.23511969,0.00023873,2]
[356401570,1742407833015,-500.0,0.00023873,2]
[356401572,1742407833026,-269.79814834,0.00023873,2]
[356401574,1742407833036,-500.0,0.00023873,2]
[356401575,1742407833046,-500.0,0.00023873,2]
[356401577,1742407833056,-500.0,0.00023873,2]
[356401579,1742407833067,-500.0,0.00023873,2]
[356401581,1742407833078,-500.0,0.00023873,2]
[356401583,1742407833088,-500.0,0.00023873,2]
[356401585,1742407833098,-500.0,0.00023873,2]
[356401587,1742407833109,-541.0,0.00023894,2]
[356401589,1742407833119,-2267.0,0.00023894,2]
[356401592,1742407833130,-1924.0,0.00023894,2]
[356401594,1742407833140,-2438.82,0.00023899,120]
[356401596,1742407833150,-2438.82,0.00023899,120]
[356401598,1742407833161,-2438.82,0.00023899,120]
[356401600,1742407833171,-2438.82,0.00023899,120]
[356401602,1742407833181,-2438.82,0.00023899,120]
[356401604,1742407833191,-2438.82,0.00023899,120]
[356401605,1742407833201,-2438.82,0.00023899,120]
[356401608,1742407833212,-2438.82,0.00023899,120]
[356401610,1742407833223,-2438.82,0.00023899,120]
[356401612,1742407833233,-2438.82,0.00023899,120]
[356401613,1742407833242,-2438.82,0.00023899,120]
[356401615,1742407833252,-500.0,0.00023899,120]
[356401617,1742407833262,-512.17876385,0.00023899,120]
[356401619,1742407833272,-2228.53,0.00023899,120]
[356401621,1742407833286,-2228.53,0.00023899,120]
[356401623,1742407833296,-2228.53,0.00023899,120]
[356401625,1742407833306,-2228.53,0.00023899,120]
[356401627,1742407833317,-2228.53,0.00023899,120]
[356401629,1742407833328,-2228.53,0.00023899,120]
[356401630,1742407833339,-2228.53,0.00023899,120]
[356401631,1742407833351,-2228.53,0.00023899,120]
[356401632,1742407833362,-2228.53,0.00023899,120]
[356401633,1742407833373,-2228.53,0.00023899,120]
[356401634,1742407833383,-2228.53,0.00023899,120]
[356401635,1742407833393,-9668.76822269,0.000239,3]
[356401636,1742407833403,-155.7586169,0.0002396,2]
[356401637,1742407833414,-155.7586169,0.00023978,2]
[356401638,1742407833425,-187.0907111,0.00023978,2]
[356401639,1742407833436,-155.7586169,0.00023978,2]
[356401640,1742407833447,-560.8155558,0.00024078,2]
[356401641,1742407833458,-155.7586169,0.00024078,2]
[356401642,1742407833468,-155.7586169,0.00024178,2]
[356401643,1742407833479,-192.0,0.00024225,2]
[356401644,1742407833489,-2438.82,0.00024398,120]
[356401645,1742407833500,-2228.53,0.00024398,120]
[356401646,1742407833510,-500.0,0.00024473,2]
[356401647,1742407833520,-2438.82,0.00024499,120]
[356401648,1742407833532,-2438.82,0.00024499,120]
[356401649,1742407833544,-2438.82,0.00024499,120]
[356401650,1742407833554,-2438.82,0.00024499,120]
[356401651,1742407833563,-2438.82,0.00024499,120]
[356401652,1742407833574,-2438.82,0.00024499,120]
[356401653,1742407833584,-2438.82,0.00024499,120]
[356401654,1742407833594,-2438.82,0.00024499,120]
[356401655,1742407833604,-2438.82,0.00024499,120]
[356401656,1742407833614,-2438.82,0.00024499,120]
[356401657,1742407833625,-2438.82,0.00024499,120]
[356401658,1742407833637,-2438.83848267,0.00024499,120]
[356401659,1742407833647,-2228.53,0.00024499,120]
[356401660,1742407833657,-2228.53,0.00024499,120]
[356401661,1742407833667,-2228.53,0.00024499,120]
[356401662,1742407833678,-2228.53,0.00024499,120]
[356401663,1742407833688,-2228.53,0.00024499,120]
[356401664,1742407833699,-2228.53,0.00024499,120]
[356401665,1742407833710,-2228.53,0.00024499,120]
[356401666,1742407833721,-2228.53,0.00024499,120]
[356401667,1742407833732,-2228.53,0.00024499,120]
[356401668,1742407833742,-2228.53,0.00024499,120]
[356401669,1742407833752,-2228.53,0.00024499,120]
[356401670,1742407833763,-2228.63914812,0.00024499,120]
[356401671,1742407833773,-1238.0,0.000245,2]
[356401672,1742407833786,-2000.0,0.000246,30]
[356401673,1742407833797,-300.0,0.000246,11]
[356401674,1742407833808,-30419.80343419,0.00024651,2]
[356401675,1742407833818,-6811.94783036,0.00024651,2]
[356401676,1742407833828,-500.0,0.00024673,2]
[356401677,1742407833838,-999.0,0.00024684,2]
[356401678,1742407833848,-999.0,0.00024684,2]
[356401679,1742407833858,-999.0,0.00024684,2]
[356401680,1742407833868,-999.0,0.00024684,2]
[356401681,1742407833878,-999.0,0.00024684,2]
[356401682,1742407833889,-999.0,0.00024684,2]
[356401683,1742407833899,-999.0,0.00024684,2]
[356401684,1742407833911,-999.0,0.00024684,2]
[356401685,1742407833921,-999.0,0.00024684,2]
[356401686,1742407833931,-999.0,0.00024684,2]
[356401687,1742407833940,-1134.409657,0.00024684,2]
[356401688,1742407833951,-9668.76822267,0.00024693,3]
[356401689,1742407833962,-833.92477148,0.00024693,3]
[356401690,1742407833971,-2000.0,0.000247,30]
[356401691,1742407833982,-187.0907111,0.00024781,2]
[356401692,1742407833994,-155.7586169,0.00024781,2]
[356401693,1742407834004,-187.0907111,0.00024781,2]
[356401694,1742407834014,-187.0907111,0.00024781,2]
[356401695,1742407834024,-187.0907111,0.00024781,2]
[356401696,1742407834036,-187.0907111,0.00024781,2]
[356401697,1742407834046,-187.0907111,0.00024781,2]
[356401698,1742407834056,-255.4748459,0.00024781,2]
[356401699,1742407834066,-187.0907111,0.00024781,2]
[356401700,1742407834076,-187.0907111,0.00024781,2]
[356401701,1742407834086,-187.0907111,0.00024781,2]
[356401702,1742407834096,-187.0907111,0.00024781,2]
[356401703,1742407834106,-187.0907111,0.00024781,2]
[356401704,1742407834115,-187.0907111,0.00024781,2]
[356401705,1742407834125,-187.0907111,0.00024781,2]
[356401706,1742407834135,-2000.0,0.000248,30]
[356401707,1742407834145,-500.0,0.00024873,2]
[356401708,1742407834155,-435.1070679,0.00024873,2]
[356401709,1742407834165,-975.51,0.000249,2]
[356401710,1742407834175,-151.0,0.000249,7]
[356401711,1742407834185,-91404.03626041,0.000249,2]
[356401733,1742407838315,-4080.50170302,0.000249,2]
[356401735,1742407838371,-35378.13247513,0.000249,2]
[356401737,1742407838383,-6015.62790141,0.000249,2]
[356401793,1742407840672,-1000.0,0.000249,2]
[356401956,1742407843493,-1629.89187806,0.000249,2]
[356401957,1742407843505,-2712.5024788,0.000249,2]
[356401958,1742407843552,-13199.56541026,0.000249,2]
[356401959,1742407843564,-350.03007947,0.000249,2]
[356401960,1742407843577,-2288.31719119,0.000249,2]
[356401961,1742407843608,-316.425,0.000249,2]
[356402186,1742407846514,-2145.98352522,0.000237,2]
[356402188,1742407846527,-219854.01647478,0.000237,2]
[356402190,1742407846539,-33535.69642318,0.000249,2]
[356402192,1742407846551,-56263.39107308,0.000249,2]
[356402195,1742407846563,-828.7,0.000249,2]
[356402422,1742408125191,1000.0,0.0001001,2]
[356402423,1742408136299,1000.0,0.0001001,2]
[356402424,1742408144835,1000.0,0.0001001,2]
[356402425,1742408152790,1000.0,0.0001001,2]
[356402426,1742408160485,1000.0,0.0001001,2]
[356402427,1742408168013,1000.0,0.0001001,2]
[356402428,1742408177948,1000.0,0.0001001,2]
[356402429,1742408184854,1000.0,0.0001001,2]
[356402430,1742408191248,1000.0,0.0001001,2]
[356402431,1742408200869,722.48,0.0001001,2]
[356402433,1742408522718,150.0,0.0001,2]
[356402435,1742408801100,-150.0,0.0002241,7]
[356402436,1742408801260,-27.10636203,0.0002241,7]
[356402491,1742409032572,-177.10636203,0.00022186,2]
[356402493,1742409032583,-122.89363797,0.0002241,7]
[356402495,1742409032593,-84.282432,0.0002241,7]
[356402497,1742409032605,-65.717568,0.0002241,7]
[356402498,1742409032614,-150.38587062,0.0002241,7]
[356402499,1742409032623,-500.0,0.000228,2]
[356402500,1742409032632,-500.0,0.000228,2]
[356402501,1742409032642,-500.0,0.0002305,2]
[356402502,1742409032651,-500.0,0.0002305,2]
[356402503,1742409032660,-500.0,0.00023275,2]
[356402504,1742409032670,-417.89091067,0.00023487,2]
[356402505,1742409032680,-833.92477148,0.00023499,2]
[356402506,1742409032689,-160.0,0.00023517,2]
[356402507,1742409032699,-4326.43565378,0.00023518,2]
[356402508,1742409032709,-300.0,0.00023553,2]
[356402509,1742409032718,-3000.0,0.000237,2]
[356402510,1742409032728,-368.08277606,0.000238,2]
[356402511,1742409032737,-200.0,0.0002426,13]
[356402512,1742409032747,-500.000001,0.0002438,2]
[356402513,1742409032756,-472.47992484,0.000247,2]
[356402514,1742409032766,-336.77966732,0.00024773,2]
[356402515,1742409032775,-500.0,0.00024773,2]
[356402516,1742409032798,-560.10567376,0.00024799,2]
[356402517,1742409032807,-183.22672535,0.00024799,2]
[356402518,1742409032817,-7588.67906268,0.000248,2]
[356402519,1742409032829,-4190.4411094,0.000248,2]
[356402520,1742409032843,-36843.45403852,0.000248,2]
[356402521,1742409032855,-908.30421946,0.000248,2]
[356402559,1742409038522,-1078.107955,0.000248,2]
[356402646,1742409040661,-1932.10000004,0.000248,2]
[356402817,1742409043545,-395.24858594,0.000248,2]
[356402831,1742409046996,-1359.23515276,0.000248,2]
[356402832,1742409047009,-23647.33592576,0.000248,2]
[356402833,1742410161593,-493.0,0.000248,120]
[356402848,1742410231726,-300.0,0.00023671,2]
[356402849,1742410231737,-6750.77633513,0.00023672,2]
[356402850,1742410231755,-537.21595774,0.00023672,2]
[356402851,1742410231882,-2054.19753243,0.00023672,2]
[356402864,1742410237625,-4088.9957523,0.00023672,2]
[356402865,1742410237634,-455.7254616,0.00023701,2]
[356402866,1742410237644,-500.0,0.00023799,2]
[356402867,1742410237653,-504.0,0.00024073,2]
[356402868,1742410237663,-200.0,0.0002441,13]
[356402869,1742410237673,-500.0,0.000245,12]
[356402870,1742410237682,-417.89091067,0.000245,2]
[356402871,1742410237692,-833.92477148,0.00024571,2]
[356402872,1742410237701,-500.0,0.00024673,2]
[356402873,1742410237711,-500.0,0.00024673,2]
[356402874,1742410237720,-1218.13242453,0.0002469,6]
[356402875,1742410237730,-392.07397163,0.00024699,2]
[356402876,1742410237743,-500.0,0.00024699,2]
[356402877,1742410237754,-500.0,0.00024699,2]
[356402878,1742410237763,-400.05544555,0.00024699,2]
[356402879,1742410237773,-3000.0,0.000247,2]
[356402880,1742410237782,-2388.60126224,0.000247,2]
[356402923,1742410242866,-16000.0,0.000247,2]
[356403025,1742410245749,-2642.10889812,0.000247,2]
[356403026,1742410245762,-8496.08970378,0.000247,2]
[356403027,1742410245805,-463.3,0.000247,2]
[356403099,1742411432145,-172.100027,0.00010959,2]
[356403101,1742411432156,-119.69198383,0.00018175,2]
[356403105,1742411432198,-380.30801617,0.00018175,2]
[356403107,1742411432207,-171.7482315,0.00023015,2]
[356403108,1742411432216,-833.92477148,0.00024479,2]
[356403110,1742411432226,-194.41380069,0.0002457,2]
[356403111,1742411432236,-300.0,0.00024572,2]
[356403113,1742411432248,-500.0,0.00024573,2]
[356403116,1742411432258,-152.03601608,0.00024573,2]
[356403118,1742411432392,-500.0,0.00024573,2]
[356403119,1742411432402,-500.0,0.00024573,2]
[356403121,1742411432412,-500.0,0.00024573,2]
[356403122,1742411432422,-500.0,0.00024573,2]
[356403124,1742411432432,-500.0,0.00024587,21]
[356403126,1742411432442,-449.07903348,0.00024599,2]
[356403127,1742411432452,-500.0,0.00024599,2]
[356403129,1742411432462,-500.0,0.00024599,2]
[356403131,1742411432472,-500.0,0.00024599,2]
[356403132,1742411432482,-500.0,0.00024599,2]
[356403133,1742411432491,-192.47911926,0.00024599,2]
[356403134,1742411432504,-500.0,0.00024599,2]
[356403135,1742411432514,-500.0,0.00024599,2]
[356403137,1742411432524,-500.0,0.00024599,2]
[356403138,1742411432534,-500.0,0.00024599,2]
[356403140,1742411432545,-500.0,0.00024599,2]
[356403142,1742411432556,-500.0,0.00024599,2]
[356403144,1742411432567,-500.0,0.00024599,2]
[356403145,1742411432577,-500.0,0.00024599,2]
[356403147,1742411432587,-500.0,0.00024599,2]
[356403148,1742411432597,-500.0,0.00024599,2]
[356403150,1742411432608,-500.0,0.00024599,2]
[356403151,1742411432619,-333.80571631,0.00024599,2]
[356403153,1742411432628,-500.0,0.00024599,2]
[356403155,1742411432638,-3000.0,0.000246,2]
[356403156,1742411432648,-14428.85278476,0.000246,2]
[356403186,1742411437888,-5170.51661026,0.000246,2]
[356403187,1742411437912,-2188.466802,0.000246,2]
[356403188,1742411437967,-37642.56215053,0.000246,2]
[356403189,1742411437978,-1000.0,0.000246,2]
[356403433,1742411440570,-73368.6332911,0.000246,2]
[356403667,1742411443125,-1238.67033699,0.000246,2]
[356403668,1742411443230,-3373.58593774,0.000246,2]
[356403885,1742411446060,-6424.48046282,0.000246,2]
[356403886,1742411446073,-2299.68341044,0.000246,2]
[356403887,1742411446086,-2045.60000001,0.000246,2]
[356403888,1742411446120,-1306.51452931,0.000246,2]
[356404225,1742412398163,-177.10636203,0.0002316,2]
[356404237,1742412542547,-315204.2525421,0.00046256,30]
[356404238,1742412542572,-500.0,0.00046256,120]
[356404239,1742412542596,-287.4493762,0.00046256,120]
[356404240,1742412542621,-5000.0,0.00046256,120]
[356404241,1742412542649,-179008.2980817,0.00046256,30]
[356404242,1742412548021,-500000.0,0.00046256,30]
[356404249,1742412558445,-20990.7019183,0.00046256,30]
[356404250,1742412558477,-468.04,0.00046256,120]
[356404251,1742412558502,-500.0,0.00046256,120]
[356404252,1742412558529,-500.0,0.00046256,120]
[356404253,1742412558556,-583.06,0.00046256,120]
[356404254,1742412558582,-500.0,0.00046256,120]
[356404255,1742412558609,-500.0,0.00046256,120]
[356404256,1742412558637,-500.0,0.00046256,120]
[356404257,1742412558662,-500.0,0.00046256,120]
[356404258,1742412558690,-500.0,0.00046256,120]
[356404259,1742412558716,-500.0,0.00046256,120]
[356404260,1742412558742,-556.69,0.00046256,120]
[356404261,1742412558773,-500.0,0.00046256,120]
[356404262,1742412558808,-500.0,0.00046256,120]
[356404263,1742412558835,-178.31,0.00046256,120]
[356404264,1742412558862,-500.0,0.00046256,120]
[356404265,1742412558889,-500.0,0.00046256,120]
[356404266,1742412558915,-500.0,0.00046256,120]
[356404267,1742412558941,-500.0,0.00046256,120]
[356404268,1742412558967,-360.57,0.00046256,120]
[356404269,1742412559129,-500.0,0.00046256,120]
[356404270,1742412559165,-500.0,0.00046256,120]
[356404271,1742412559194,-632.27,0.00046256,120]
[356404272,1742412559223,-391.6,0.00046256,120]
[356404273,1742412559250,-500.0,0.00046256,120]
[356404274,1742412559277,-500.0,0.00046256,120]
[356404275,1742412559304,-635.47,0.00046256,120]
[356404276,1742412559330,-500.0,0.00046256,120]
[356404277,1742412559357,-500.0,0.00046256,120]
[356404278,1742412559382,-500.0,0.00046256,120]
[356404279,1742412559408,-500.0,0.00046256,120]
[356404280,1742412559437,-500.0,0.00046256,120]
[356404281,1742412559463,-500.0,0.00046256,120]
[356404282,1742412559491,-500.0,0.00046256,120]
[356404283,1742412559517,-500.0,0.00046256,120]
[356404284,1742412559543,-500.0,0.00046256,120]
[356404285,1742412559568,-500.0,0.00046256,120]
[356404286,1742412559592,-500.0,0.00046256,120]
[356404287,1742412559616,-500.0,0.00046256,120]
[356404288,1742412559642,-400.7,0.00046256,120]
[356404289,1742412559668,-500.0,0.00046256,120]
[356404290,1742412559697,-407.88,0.00046256,120]
[356404291,1742412559722,-500.0,0.00046256,120]
[356404292,1742412559748,-321.14,0.00046256,120]
[356404293,1742412559773,-500.0,0.00046256,120]
[356404294,1742412559798,-500.0,0.00046256,120]
[356404295,1742412559822,-484.54,0.00046256,120]
[356404296,1742412559847,-500.0,0.00046256,120]
[356404297,1742412559871,-500.0,0.00046256,120]
[356404298,1742412559896,-500.0,0.00046256,120]
[356404299,1742412559921,-518.93883208,0.00046256,120]
[356404300,1742412559948,-500.0,0.00046256,120]
[356404301,1742412559972,-500.0,0.00046256,120]
[356404302,1742412559996,-353.13,0.00046256,120]
[356404303,1742412560021,-500.0,0.00046256,120]
[356404304,1742412560048,-500.0,0.00046256,120]
[356404305,1742412560072,-174.81,0.00046256,120]
[356404306,1742412560097,-500.0,0.00046256,120]
[356404307,1742412560122,-500.0,0.00046256,120]
[356404308,1742412560147,-500.0,0.00046256,120]
[356404309,1742412560172,-500.0,0.00046256,120]
[356404310,1742412560198,-500.0,0.00046256,120]
[356404311,1742412560223,-643.32,0.00046256,120]
[356404312,1742412560249,-500.0,0.00046256,120]
[356404313,1742412560274,-500.0,0.00046256,120]
[356404314,1742412560299,-500.0,0.00046256,120]
[356404315,1742412560324,-500.0,0.00046256,120]
[356404316,1742412560350,-500.0,0.00046256,120]
[356404317,1742412560374,-500.0,0.00046256,120]
[356404318,1742412560399,-500.0,0.00046256,120]
[356404319,1742412560423,-500.0,0.00046256,120]
[356404320,1742412560450,-500.0,0.00046256,120]
[356404321,1742412560580,-500.0,0.00046256,120]
[356404322,1742412560607,-500.0,0.00046256,120]
[356404323,1742412560632,-400.02,0.00046256,120]
[356404324,1742412560658,-1160.36,0.00046256,120]
[356404325,1742412560685,-1160.36,0.00046256,120]
[356404326,1742412560712,-1160.36,0.00046256,120]
[356404327,1742412560738,-1160.36,0.00046256,120]
[356404328,1742412560765,-1160.36,0.00046256,120]
[356404329,1742412560791,-1160.36,0.00046256,120]
[356404330,1742412560817,-1160.36,0.00046256,120]
[356404331,1742412560842,-1160.36,0.00046256,120]
[356404332,1742412560867,-1160.36,0.00046256,120]
[356404333,1742412560892,-1160.36,0.00046256,120]
[356404334,1742412560917,-1160.36,0.00046256,120]
[356404335,1742412560944,-1160.36,0.00046256,120]
[356404336,1742412560969,-1160.36,0.00046256,120]
[356404337,1742412560994,-1160.36,0.00046256,120]
[356404338,1742412561019,-1160.36,0.00046256,120]
[356404339,1742412561044,-1160.36,0.00046256,120]
[356404340,1742412561069,-1160.36,0.00046256,120]
[356404341,1742412561095,-1160.36,0.00046256,120]
[356404342,1742412561120,-1160.36,0.00046256,120]
[356404343,1742412561146,-1160.36,0.00046256,120]
[356404344,1742412561171,-1160.36,0.00046256,120]
[356404345,1742412561197,-1160.36,0.00046256,120]
[356404346,1742412561221,-1160.54,0.00046256,120]
[356404347,1742412561246,-500.0,0.00046256,120]
[356404348,1742412561270,-500.0,0.00046256,120]
[356404349,1742412561295,-500.0,0.00046256,120]
[356404350,1742412561319,-500.0,0.00046256,120]
[356404351,1742412561345,-500.0,0.00046256,120]
[356404352,1742412561370,-500.0,0.00046256,120]
[356404353,1742412561395,-500.0,0.00046256,120]
[356404354,1742412561419,-162.28,0.00046256,120]
[356404355,1742412561445,-500.0,0.00046256,120]
[356404356,1742412561472,-500.0,0.00046256,120]
[356404357,1742412561497,-500.0,0.00046256,120]
[356404358,1742412561524,-500.0,0.00046256,120]
[356404359,1742412561549,-500.0,0.00046256,120]
[356404360,1742412561573,-500.0,0.00046256,120]
[356404361,1742412561598,-500.0,0.00046256,120]
[356404362,1742412561622,-500.0,0.00046256,120]
[356404363,1742412561647,-500.0,0.00046256,120]
[356404364,1742412561671,-500.0,0.00046256,120]
[356404365,1742412561697,-500.0,0.00046256,120]
[356404366,1742412561722,-500.0,0.00046256,120]
[356404367,1742412561747,-500.0,0.00046256,120]
[356404368,1742412561771,-500.0,0.00046256,120]
[356404369,1742412561796,-500.0,0.00046256,120]
[356404370,1742412561821,-500.0,0.00046256,120]
[356404371,1742412561845,-640.96,0.00046256,120]
[356404372,1742412561870,-500.0,0.00046256,120]
[356404373,1742412561895,-500.0,0.00046256,120]
[356404374,1742412561921,-500.0,0.00046256,120]
[356404375,1742412561951,-500.0,0.00046256,120]
[356404376,1742412561978,-500.0,0.00046256,120]
[356404377,1742412562005,-500.0,0.00046256,120]
[356404378,1742412562030,-500.0,0.00046256,120]
[356404379,1742412562055,-500.0,0.00046256,120]
[356404380,1742412562080,-500.0,0.00046256,120]
[356404381,1742412562105,-500.0,0.00046256,120]
[356404382,1742412562129,-500.0,0.00046256,120]
[356404383,1742412562154,-500.0,0.00046256,120]
[356404384,1742412562179,-500.0,0.00046256,120]
[356404385,1742412562207,-1338.1,0.00046256,120]
[356404386,1742412562231,-1338.1,0.00046256,120]
[356404387,1742412562255,-1338.1,0.00046256,120]
[356404388,1742412562383,-1338.1,0.00046256,120]
[356404389,1742412562411,-1338.1,0.00046256,120]
[356404390,1742412562439,-1338.1,0.00046256,120]
[356404391,1742412562468,-1338.1,0.00046256,120]
[356404392,1742412562494,-500.0,0.00046256,120]
[356404393,1742412562520,-1338.1,0.00046256,120]
[356404394,1742412562545,-500.0,0.00046256,120]
[356404395,1742412562570,-1338.1,0.00046256,120]
[356404396,1742412562597,-500.0,0.00046256,120]
[356404397,1742412562621,-1338.1,0.00046256,120]
[356404398,1742412562646,-1338.1,0.00046256,120]
[356404399,1742412562672,-500.0,0.00046256,120]
[356404400,1742412562698,-1338.1,0.00046256,120]
[356404401,1742412562724,-500.0,0.00046256,120]
[356404402,1742412562748,-1338.1,0.00046256,120]
[356404403,1742412562773,-500.0,0.00046256,120]
[356404404,1742412562797,-1338.1,0.00046256,120]
[356404405,1742412562822,-500.0,0.00046256,120]
[356404406,1742412562845,-500.0,0.00046256,120]
[356404407,1742412562870,-500.0,0.00046256,120]
[356404408,1742412562894,-1338.1,0.00046256,120]
[356404409,1742412562917,-500.0,0.00046256,120]
[356404410,1742412562944,-500.0,0.00046256,120]
[356404411,1742412562967,-500.0,0.00046256,120]
[356404412,1742412562990,-500.0,0.00046256,120]
[356404413,1742412563014,-1338.1,0.00046256,120]
[356404414,1742412563037,-500.0,0.00046256,120]
[356404415,1742412563060,-500.0,0.00046256,120]
[356404416,1742412563083,-500.0,0.00046256,120]
[356404417,1742412563106,-500.0,0.00046256,120]
[356404418,1742412563130,-500.0,0.00046256,120]
[356404419,1742412563152,-500.0,0.00046256,120]
[356404420,1742412563192,-500.0,0.00046256,120]
[356404421,1742412563232,-500.0,0.00046256,120]
[356404422,1742412563274,-500.0,0.00046256,120]
[356404423,1742412563313,-488.68,0.00046256,120]
[356404424,1742412563347,-278.41327305,0.00046256,120]
[356404425,1742412563387,-500.0,0.00046256,120]
[356404426,1742412563423,-500.0,0.00046256,120]
[356404427,1742412563461,-500.0,0.00046256,120]
[356404428,1742412563499,-500.0,0.00046256,120]
[356404429,1742412563530,-500.0,0.00046256,120]
[356404430,1742412563567,-500.0,0.00046256,120]
[356404431,1742412563599,-500.0,0.00046256,120]
[356404432,1742412563632,-500.0,0.00046256,120]
[356404433,1742412563665,-500.0,0.00046256,120]
[356404434,1742412563701,-500.0,0.00046256,120]
[356404435,1742412563734,-500.0,0.00046256,120]
[356404436,1742412563767,-500.0,0.00046256,120]
[356404437,1742412563799,-500.0,0.00046256,120]
[356404438,1742412563831,-500.0,0.00046256,120]
[356404439,1742412563863,-500.0,0.00046256,120]
[356404440,1742412563896,-500.0,0.00046256,120]
[356404441,1742412563929,-500.0,0.00046256,120]
[356404442,1742412563963,-500.0,0.00046256,120]
[356404443,1742412563996,-407.68,0.00046256,120]
[356404444,1742412564029,-189.45,0.00046256,120]
[356404445,1742412564061,-1005.94,0.00046256,120]
[356404446,1742412564127,-1005.94,0.00046256,120]
[356404447,1742412564172,-1005.94,0.00046256,120]
[356404448,1742412564214,-1005.94,0.00046256,120]
[356404449,1742412564251,-1005.94,0.00046256,120]
[356404450,1742412564286,-1005.94,0.00046256,120]
[356404451,1742412564320,-1005.94,0.00046256,120]
[356404452,1742412564355,-336.12897917,0.00046256,120]
[356404453,1742412564563,-1005.94,0.00046256,120]
[356404454,1742412564591,-1005.94,0.00046256,120]
[356404455,1742412564617,-1005.94,0.00046256,120]
[356404456,1742412564642,-1005.94,0.00046256,120]
[356404457,1742412564666,-1005.94,0.00046256,120]
[356404458,1742412564693,-1005.94,0.00046256,120]